{"text_format":"2","workbook":"xlsx","n_sheets":7,"sheets":["Pool","Platz3an","Platz3bn","Platz5an","Platz5bn","Platz7an","Platz7bn"],"not_rendered":{"charts":0,"images":3,"macros":0,"external_links":2,"defined_names":2,"comments":0,"pivot_tables":0},"unopened":[],"bounds":{"document_bytes":16777216,"sheet_cells":100000,"run_cost":"one","rows_first":2000,"rows_last":500,"rows_between":2000,"halvings":0,"cell_chars":16384,"cell_head_chars":4096},"cells_cut":0,"cells_raw":0,"read":"whole","date_system":"1900"}

{"sheet":"Pool","index":0,"n_rows":50,"n_cols":24,"rows_kept":50,"cut":false,"hidden":false,"merged":[[31,1,31,2],[32,1,32,2],[33,1,33,2],[14,1,14,2],[15,1,15,2],[16,1,16,2],[17,1,17,2],[30,1,30,2]]}
[{"$f":"IFERROR(__xludf.DUMMYFUNCTION(\"IMPORTRANGE(\"\"https://docs.google.com/spreadsheets/d/1hqtO4NVKr__8fHMNRC-AhE5Z0_fD178cgwONoS9PqAs/edit?gid=2014939635#gid=2014939635\"\",\"\"Pool!A1:W56\"\")\"),\"\")","v":""}]
[{"$f":"IFERROR(__xludf.DUMMYFUNCTION(\"\"\"COMPUTED_VALUE\"\"\"),\"Poolliste   für  8 Kämpfer\")","v":"Poolliste   für  8 Kämpfer"},{"$nulls":6},{"$f":"IFERROR(__xludf.DUMMYFUNCTION(\"\"\"COMPUTED_VALUE\"\"\"),\"Platzierung:\")","v":"Platzierung:"}]
[{"$f":"IFERROR(__xludf.DUMMYFUNCTION(\"\"\"COMPUTED_VALUE\"\"\"),\"Veranstaltung:  \")","v":"Veranstaltung:  "},null,{"$f":"IFERROR(__xludf.DUMMYFUNCTION(\"\"\"COMPUTED_VALUE\"\"\"),\"Süddeutsche EM Männer Frauen 2024\")","v":"Süddeutsche EM Männer Frauen 2024"},{"$nulls":4},{"$f":"IFERROR(__xludf.DUMMYFUNCTION(\"\"\"COMPUTED_VALUE\"\"\"),\"1.\")","v":"1."},{"$f":"IFERROR(__xludf.DUMMYFUNCTION(\"\"\"COMPUTED_VALUE\"\"\"),\"Löffler Kilian\")","v":"Löffler Kilian"},{"$nulls":7},{"$f":"IFERROR(__xludf.DUMMYFUNCTION(\"\"\"COMPUTED_VALUE\"\"\"),\"DJK Ensdorf\")","v":"DJK Ensdorf"}]
[{"$f":"IFERROR(__xludf.DUMMYFUNCTION(\"\"\"COMPUTED_VALUE\"\"\"),\"Sportl. Leitung:\")","v":"Sportl. Leitung:"},null,{"$f":"IFERROR(__xludf.DUMMYFUNCTION(\"\"\"COMPUTED_VALUE\"\"\"),\"Emil Burock\")","v":"Emil Burock"},{"$nulls":4},{"$f":"IFERROR(__xludf.DUMMYFUNCTION(\"\"\"COMPUTED_VALUE\"\"\"),\"2.\")","v":"2."},{"$f":"IFERROR(__xludf.DUMMYFUNCTION(\"\"\"COMPUTED_VALUE\"\"\"),\"Böhm Arne\")","v":"Böhm Arne"},{"$nulls":7},{"$f":"IFERROR(__xludf.DUMMYFUNCTION(\"\"\"COMPUTED_VALUE\"\"\"),\"TSB Ravensburg\")","v":"TSB Ravensburg"}]
[{"$f":"IFERROR(__xludf.DUMMYFUNCTION(\"\"\"COMPUTED_VALUE\"\"\"),\"Gewichtsklasse:\")","v":"Gewichtsklasse:"},null,{"$f":"IFERROR(__xludf.DUMMYFUNCTION(\"\"\"COMPUTED_VALUE\"\"\"),\"M-60KG\")","v":"M-60KG"},{"$nulls":4},{"$f":"IFERROR(__xludf.DUMMYFUNCTION(\"\"\"COMPUTED_VALUE\"\"\"),\"3.\")","v":"3."},{"$f":"IFERROR(__xludf.DUMMYFUNCTION(\"\"\"COMPUTED_VALUE\"\"\"),\"Werner Max\")","v":"Werner Max"},{"$nulls":7},{"$f":"IFERROR(__xludf.DUMMYFUNCTION(\"\"\"COMPUTED_VALUE\"\"\"),\"TV 1881 Altdorf e.V.\")","v":"TV 1881 Altdorf e.V."}]
[{"$f":"IFERROR(__xludf.DUMMYFUNCTION(\"\"\"COMPUTED_VALUE\"\"\"),\"Datum :                    \")","v":"Datum :                    "},null,{"$f":"IFERROR(__xludf.DUMMYFUNCTION(\"\"\"COMPUTED_VALUE\"\"\"),45556.2916666666)","v":"2024-09-21T07:00:00"},{"$nulls":4},{"$f":"IFERROR(__xludf.DUMMYFUNCTION(\"\"\"COMPUTED_VALUE\"\"\"),\"3.\")","v":"3."},{"$f":"IFERROR(__xludf.DUMMYFUNCTION(\"\"\"COMPUTED_VALUE\"\"\"),\"Hofgärtner Valentin\")","v":"Hofgärtner Valentin"},{"$nulls":7},{"$f":"IFERROR(__xludf.DUMMYFUNCTION(\"\"\"COMPUTED_VALUE\"\"\"),\"JV Nürtingen\")","v":"JV Nürtingen"}]
[{"$nulls":7},{"$f":"IFERROR(__xludf.DUMMYFUNCTION(\"\"\"COMPUTED_VALUE\"\"\"),\"5.\")","v":"5."},{"$f":"IFERROR(__xludf.DUMMYFUNCTION(\"\"\"COMPUTED_VALUE\"\"\"),\"Harder Mattis\")","v":"Harder Mattis"},{"$nulls":7},{"$f":"IFERROR(__xludf.DUMMYFUNCTION(\"\"\"COMPUTED_VALUE\"\"\"),\"Freiburger Judo-Club\")","v":"Freiburger Judo-Club"}]
[{"$nulls":7},{"$f":"IFERROR(__xludf.DUMMYFUNCTION(\"\"\"COMPUTED_VALUE\"\"\"),\"5.\")","v":"5."},{"$f":"IFERROR(__xludf.DUMMYFUNCTION(\"\"\"COMPUTED_VALUE\"\"\"),\"Jaser Semyan\")","v":"Jaser Semyan"},{"$nulls":7},{"$f":"IFERROR(__xludf.DUMMYFUNCTION(\"\"\"COMPUTED_VALUE\"\"\"),\"Polizei-SV Königsbrunn\")","v":"Polizei-SV Königsbrunn"}]
[{"$nulls":7},{"$f":"IFERROR(__xludf.DUMMYFUNCTION(\"\"\"COMPUTED_VALUE\"\"\"),\"7.\")","v":"7."},{"$f":"IFERROR(__xludf.DUMMYFUNCTION(\"\"\"COMPUTED_VALUE\"\"\"),\"Haiber Anton\")","v":"Haiber Anton"},{"$nulls":7},{"$f":"IFERROR(__xludf.DUMMYFUNCTION(\"\"\"COMPUTED_VALUE\"\"\"),\"TSV Grünwald\")","v":"TSV Grünwald"}]
[{"$nulls":7},{"$f":"IFERROR(__xludf.DUMMYFUNCTION(\"\"\"COMPUTED_VALUE\"\"\"),\"7.\")","v":"7."},{"$f":"IFERROR(__xludf.DUMMYFUNCTION(\"\"\"COMPUTED_VALUE\"\"\"),\"Richter Micha\")","v":"Richter Micha"},{"$nulls":7},{"$f":"IFERROR(__xludf.DUMMYFUNCTION(\"\"\"COMPUTED_VALUE\"\"\"),\"JV Urbach\")","v":"JV Urbach"}]
[]
[{"$nulls":17},{"$f":"IFERROR(__xludf.DUMMYFUNCTION(\"\"\"COMPUTED_VALUE\"\"\"),\"Gesamtwertung\")","v":"Gesamtwertung"}]
[{"$f":"IFERROR(__xludf.DUMMYFUNCTION(\"\"\"COMPUTED_VALUE\"\"\"),\"A\")","v":"A"},{"$f":"IFERROR(__xludf.DUMMYFUNCTION(\"\"\"COMPUTED_VALUE\"\"\"),\"Name\")","v":"Name"},null,{"$f":"IFERROR(__xludf.DUMMYFUNCTION(\"\"\"COMPUTED_VALUE\"\"\"),\"Verein\")","v":"Verein"},null,{"$f":"IFERROR(__xludf.DUMMYFUNCTION(\"\"\"COMPUTED_VALUE\"\"\"),\"Pkt.\")","v":"Pkt."},{"$f":"IFERROR(__xludf.DUMMYFUNCTION(\"\"\"COMPUTED_VALUE\"\"\"),\"Unterberwert.\")","v":"Unterberwert."},null,{"$f":"IFERROR(__xludf.DUMMYFUNCTION(\"\"\"COMPUTED_VALUE\"\"\"),\"Pkt.\")","v":"Pkt."},{"$f":"IFERROR(__xludf.DUMMYFUNCTION(\"\"\"COMPUTED_VALUE\"\"\"),\"Unterberwert.\")","v":"Unterberwert."},null,{"$f":"IFERROR(__xludf.DUMMYFUNCTION(\"\"\"COMPUTED_VALUE\"\"\"),\"Pkt.\")","v":"Pkt."},{"$f":"IFERROR(__xludf.DUMMYFUNCTION(\"\"\"COMPUTED_VALUE\"\"\"),\"Unterberwert.\")","v":"Unterberwert."},null,{"$f":"IFERROR(__xludf.DUMMYFUNCTION(\"\"\"COMPUTED_VALUE\"\"\"),\"Pkt.\")","v":"Pkt."},{"$f":"IFERROR(__xludf.DUMMYFUNCTION(\"\"\"COMPUTED_VALUE\"\"\"),\"Unterberwert.\")","v":"Unterberwert."},null,{"$f":"IFERROR(__xludf.DUMMYFUNCTION(\"\"\"COMPUTED_VALUE\"\"\"),\"Punkte\")","v":"Punkte"},null,{"$f":"IFERROR(__xludf.DUMMYFUNCTION(\"\"\"COMPUTED_VALUE\"\"\"),\"Unterbew.\")","v":"Unterbew."},null,null,{"$f":"IFERROR(__xludf.DUMMYFUNCTION(\"\"\"COMPUTED_VALUE\"\"\"),\"Ergeb.\")","v":"Ergeb."}]
[{"$f":"IFERROR(__xludf.DUMMYFUNCTION(\"\"\"COMPUTED_VALUE\"\"\"),\"LOS\")","v":"LOS"},{"$nulls":5},{"$f":"IFERROR(__xludf.DUMMYFUNCTION(\"\"\"COMPUTED_VALUE\"\"\"),1)","v":1},null,null,{"$f":"IFERROR(__xludf.DUMMYFUNCTION(\"\"\"COMPUTED_VALUE\"\"\"),2)","v":2},null,null,{"$f":"IFERROR(__xludf.DUMMYFUNCTION(\"\"\"COMPUTED_VALUE\"\"\"),3)","v":3},null,null,{"$f":"IFERROR(__xludf.DUMMYFUNCTION(\"\"\"COMPUTED_VALUE\"\"\"),4)","v":4}]
[{"$f":"IFERROR(__xludf.DUMMYFUNCTION(\"\"\"COMPUTED_VALUE\"\"\"),1)","v":1},{"$f":"IFERROR(__xludf.DUMMYFUNCTION(\"\"\"COMPUTED_VALUE\"\"\"),\"Böhm Arne\")","v":"Böhm Arne"},null,{"$f":"IFERROR(__xludf.DUMMYFUNCTION(\"\"\"COMPUTED_VALUE\"\"\"),\"TSB Ravensburg\")","v":"TSB Ravensburg"},null,{"$f":"IFERROR(__xludf.DUMMYFUNCTION(\"\"\"COMPUTED_VALUE\"\"\"),\"X\")","v":"X"},{"$f":"IFERROR(__xludf.DUMMYFUNCTION(\"\"\"COMPUTED_VALUE\"\"\"),\"X\")","v":"X"},{"$f":"IFERROR(__xludf.DUMMYFUNCTION(\"\"\"COMPUTED_VALUE\"\"\"),\"X\")","v":"X"},{"$f":"IFERROR(__xludf.DUMMYFUNCTION(\"\"\"COMPUTED_VALUE\"\"\"),1)","v":1},{"$f":"IFERROR(__xludf.DUMMYFUNCTION(\"\"\"COMPUTED_VALUE\"\"\"),10)","v":10},{"$f":"IFERROR(__xludf.DUMMYFUNCTION(\"\"\"COMPUTED_VALUE\"\"\"),0)","v":0},{"$f":"IFERROR(__xludf.DUMMYFUNCTION(\"\"\"COMPUTED_VALUE\"\"\"),1)","v":1},{"$f":"IFERROR(__xludf.DUMMYFUNCTION(\"\"\"COMPUTED_VALUE\"\"\"),10)","v":10},{"$f":"IFERROR(__xludf.DUMMYFUNCTION(\"\"\"COMPUTED_VALUE\"\"\"),0)","v":0},{"$f":"IFERROR(__xludf.DUMMYFUNCTION(\"\"\"COMPUTED_VALUE\"\"\"),0)","v":0},{"$f":"IFERROR(__xludf.DUMMYFUNCTION(\"\"\"COMPUTED_VALUE\"\"\"),0)","v":0},{"$f":"IFERROR(__xludf.DUMMYFUNCTION(\"\"\"COMPUTED_VALUE\"\"\"),10)","v":10},{"$f":"IFERROR(__xludf.DUMMYFUNCTION(\"\"\"COMPUTED_VALUE\"\"\"),2)","v":2},null,{"$f":"IFERROR(__xludf.DUMMYFUNCTION(\"\"\"COMPUTED_VALUE\"\"\"),20)","v":20},{"$f":"IFERROR(__xludf.DUMMYFUNCTION(\"\"\"COMPUTED_VALUE\"\"\"),10)","v":10},null,{"$f":"IFERROR(__xludf.DUMMYFUNCTION(\"\"\"COMPUTED_VALUE\"\"\"),2)","v":2},{"$f":"IF(B15=0,\"\",R15*100+(T15-U15))","v":210}]
[{"$f":"IFERROR(__xludf.DUMMYFUNCTION(\"\"\"COMPUTED_VALUE\"\"\"),2)","v":2},{"$f":"IFERROR(__xludf.DUMMYFUNCTION(\"\"\"COMPUTED_VALUE\"\"\"),\"Haiber Anton\")","v":"Haiber Anton"},null,{"$f":"IFERROR(__xludf.DUMMYFUNCTION(\"\"\"COMPUTED_VALUE\"\"\"),\"TSV Grünwald\")","v":"TSV Grünwald"},null,{"$f":"IFERROR(__xludf.DUMMYFUNCTION(\"\"\"COMPUTED_VALUE\"\"\"),0)","v":0},{"$f":"IFERROR(__xludf.DUMMYFUNCTION(\"\"\"COMPUTED_VALUE\"\"\"),0)","v":0},{"$f":"IFERROR(__xludf.DUMMYFUNCTION(\"\"\"COMPUTED_VALUE\"\"\"),10)","v":10},{"$f":"IFERROR(__xludf.DUMMYFUNCTION(\"\"\"COMPUTED_VALUE\"\"\"),\"X\")","v":"X"},{"$f":"IFERROR(__xludf.DUMMYFUNCTION(\"\"\"COMPUTED_VALUE\"\"\"),\"X\")","v":"X"},{"$f":"IFERROR(__xludf.DUMMYFUNCTION(\"\"\"COMPUTED_VALUE\"\"\"),\"X\")","v":"X"},{"$f":"IFERROR(__xludf.DUMMYFUNCTION(\"\"\"COMPUTED_VALUE\"\"\"),0)","v":0},{"$f":"IFERROR(__xludf.DUMMYFUNCTION(\"\"\"COMPUTED_VALUE\"\"\"),0)","v":0},{"$f":"IFERROR(__xludf.DUMMYFUNCTION(\"\"\"COMPUTED_VALUE\"\"\"),10)","v":10},{"$f":"IFERROR(__xludf.DUMMYFUNCTION(\"\"\"COMPUTED_VALUE\"\"\"),0)","v":0},{"$f":"IFERROR(__xludf.DUMMYFUNCTION(\"\"\"COMPUTED_VALUE\"\"\"),0)","v":0},{"$f":"IFERROR(__xludf.DUMMYFUNCTION(\"\"\"COMPUTED_VALUE\"\"\"),10)","v":10},{"$f":"IFERROR(__xludf.DUMMYFUNCTION(\"\"\"COMPUTED_VALUE\"\"\"),0)","v":0},null,{"$f":"IFERROR(__xludf.DUMMYFUNCTION(\"\"\"COMPUTED_VALUE\"\"\"),0)","v":0},{"$f":"IFERROR(__xludf.DUMMYFUNCTION(\"\"\"COMPUTED_VALUE\"\"\"),30)","v":30},null,{"$f":"IFERROR(__xludf.DUMMYFUNCTION(\"\"\"COMPUTED_VALUE\"\"\"),4)","v":4},-30]
[{"$f":"IFERROR(__xludf.DUMMYFUNCTION(\"\"\"COMPUTED_VALUE\"\"\"),3)","v":3},{"$f":"IFERROR(__xludf.DUMMYFUNCTION(\"\"\"COMPUTED_VALUE\"\"\"),\"Harder Mattis\")","v":"Harder Mattis"},null,{"$f":"IFERROR(__xludf.DUMMYFUNCTION(\"\"\"COMPUTED_VALUE\"\"\"),\"Freiburger Judo-Club\")","v":"Freiburger Judo-Club"},null,{"$f":"IFERROR(__xludf.DUMMYFUNCTION(\"\"\"COMPUTED_VALUE\"\"\"),0)","v":0},{"$f":"IFERROR(__xludf.DUMMYFUNCTION(\"\"\"COMPUTED_VALUE\"\"\"),0)","v":0},{"$f":"IFERROR(__xludf.DUMMYFUNCTION(\"\"\"COMPUTED_VALUE\"\"\"),10)","v":10},{"$f":"IFERROR(__xludf.DUMMYFUNCTION(\"\"\"COMPUTED_VALUE\"\"\"),1)","v":1},{"$f":"IFERROR(__xludf.DUMMYFUNCTION(\"\"\"COMPUTED_VALUE\"\"\"),10)","v":10},{"$f":"IFERROR(__xludf.DUMMYFUNCTION(\"\"\"COMPUTED_VALUE\"\"\"),0)","v":0},{"$f":"IFERROR(__xludf.DUMMYFUNCTION(\"\"\"COMPUTED_VALUE\"\"\"),\"X\")","v":"X"},{"$f":"IFERROR(__xludf.DUMMYFUNCTION(\"\"\"COMPUTED_VALUE\"\"\"),\"X\")","v":"X"},{"$f":"IFERROR(__xludf.DUMMYFUNCTION(\"\"\"COMPUTED_VALUE\"\"\"),\"X\")","v":"X"},{"$f":"IFERROR(__xludf.DUMMYFUNCTION(\"\"\"COMPUTED_VALUE\"\"\"),0)","v":0},{"$f":"IFERROR(__xludf.DUMMYFUNCTION(\"\"\"COMPUTED_VALUE\"\"\"),0)","v":0},{"$f":"IFERROR(__xludf.DUMMYFUNCTION(\"\"\"COMPUTED_VALUE\"\"\"),10)","v":10},{"$f":"IFERROR(__xludf.DUMMYFUNCTION(\"\"\"COMPUTED_VALUE\"\"\"),1)","v":1},null,{"$f":"IFERROR(__xludf.DUMMYFUNCTION(\"\"\"COMPUTED_VALUE\"\"\"),10)","v":10},{"$f":"IFERROR(__xludf.DUMMYFUNCTION(\"\"\"COMPUTED_VALUE\"\"\"),20)","v":20},null,{"$f":"IFERROR(__xludf.DUMMYFUNCTION(\"\"\"COMPUTED_VALUE\"\"\"),3)","v":3},90]
[{"$f":"IFERROR(__xludf.DUMMYFUNCTION(\"\"\"COMPUTED_VALUE\"\"\"),4)","v":4},{"$f":"IFERROR(__xludf.DUMMYFUNCTION(\"\"\"COMPUTED_VALUE\"\"\"),\"Löffler Kilian\")","v":"Löffler Kilian"},null,{"$f":"IFERROR(__xludf.DUMMYFUNCTION(\"\"\"COMPUTED_VALUE\"\"\"),\"DJK Ensdorf\")","v":"DJK Ensdorf"},null,{"$f":"IFERROR(__xludf.DUMMYFUNCTION(\"\"\"COMPUTED_VALUE\"\"\"),1)","v":1},{"$f":"IFERROR(__xludf.DUMMYFUNCTION(\"\"\"COMPUTED_VALUE\"\"\"),10)","v":10},{"$f":"IFERROR(__xludf.DUMMYFUNCTION(\"\"\"COMPUTED_VALUE\"\"\"),0)","v":0},{"$f":"IFERROR(__xludf.DUMMYFUNCTION(\"\"\"COMPUTED_VALUE\"\"\"),1)","v":1},{"$f":"IFERROR(__xludf.DUMMYFUNCTION(\"\"\"COMPUTED_VALUE\"\"\"),10)","v":10},{"$f":"IFERROR(__xludf.DUMMYFUNCTION(\"\"\"COMPUTED_VALUE\"\"\"),0)","v":0},{"$f":"IFERROR(__xludf.DUMMYFUNCTION(\"\"\"COMPUTED_VALUE\"\"\"),1)","v":1},{"$f":"IFERROR(__xludf.DUMMYFUNCTION(\"\"\"COMPUTED_VALUE\"\"\"),10)","v":10},{"$f":"IFERROR(__xludf.DUMMYFUNCTION(\"\"\"COMPUTED_VALUE\"\"\"),0)","v":0},{"$f":"IFERROR(__xludf.DUMMYFUNCTION(\"\"\"COMPUTED_VALUE\"\"\"),\"X\")","v":"X"},{"$f":"IFERROR(__xludf.DUMMYFUNCTION(\"\"\"COMPUTED_VALUE\"\"\"),\"X\")","v":"X"},{"$f":"IFERROR(__xludf.DUMMYFUNCTION(\"\"\"COMPUTED_VALUE\"\"\"),\"X\")","v":"X"},{"$f":"IFERROR(__xludf.DUMMYFUNCTION(\"\"\"COMPUTED_VALUE\"\"\"),3)","v":3},null,{"$f":"IFERROR(__xludf.DUMMYFUNCTION(\"\"\"COMPUTED_VALUE\"\"\"),30)","v":30},{"$f":"IFERROR(__xludf.DUMMYFUNCTION(\"\"\"COMPUTED_VALUE\"\"\"),0)","v":0},null,{"$f":"IFERROR(__xludf.DUMMYFUNCTION(\"\"\"COMPUTED_VALUE\"\"\"),1)","v":1},330]
[]
[{"$f":"IFERROR(__xludf.DUMMYFUNCTION(\"\"\"COMPUTED_VALUE\"\"\"),\"Kampffolgen Pool  A :\")","v":"Kampffolgen Pool  A :"},{"$nulls":16},{"$f":"IFERROR(__xludf.DUMMYFUNCTION(\"\"\"COMPUTED_VALUE\"\"\"),\"  Erg.\")","v":"  Erg."},null,{"$f":"IFERROR(__xludf.DUMMYFUNCTION(\"\"\"COMPUTED_VALUE\"\"\"),\"Unterbew.\")","v":"Unterbew."}]
[{"$f":"IFERROR(__xludf.DUMMYFUNCTION(\"\"\"COMPUTED_VALUE\"\"\"),\" 1 - 2\")","v":" 1 - 2"},{"$f":"IFERROR(__xludf.DUMMYFUNCTION(\"\"\"COMPUTED_VALUE\"\"\"),\"Böhm Arne\")","v":"Böhm Arne"},null,{"$f":"IFERROR(__xludf.DUMMYFUNCTION(\"\"\"COMPUTED_VALUE\"\"\"),\"TSB Ravensburg\")","v":"TSB Ravensburg"},{"$f":"IFERROR(__xludf.DUMMYFUNCTION(\"\"\"COMPUTED_VALUE\"\"\"),\" -\")","v":" -"},{"$f":"IFERROR(__xludf.DUMMYFUNCTION(\"\"\"COMPUTED_VALUE\"\"\"),\"Haiber Anton\")","v":"Haiber Anton"},{"$nulls":5},{"$f":"IFERROR(__xludf.DUMMYFUNCTION(\"\"\"COMPUTED_VALUE\"\"\"),\"TSV Grünwald\")","v":"TSV Grünwald"},{"$nulls":5},{"$f":"IFERROR(__xludf.DUMMYFUNCTION(\"\"\"COMPUTED_VALUE\"\"\"),1)","v":1},{"$f":"IFERROR(__xludf.DUMMYFUNCTION(\"\"\"COMPUTED_VALUE\"\"\"),0)","v":0},{"$f":"IFERROR(__xludf.DUMMYFUNCTION(\"\"\"COMPUTED_VALUE\"\"\"),10)","v":10},{"$f":"IFERROR(__xludf.DUMMYFUNCTION(\"\"\"COMPUTED_VALUE\"\"\"),0)","v":0}]
[{"$f":"IFERROR(__xludf.DUMMYFUNCTION(\"\"\"COMPUTED_VALUE\"\"\"),\" 3 - 4 \")","v":" 3 - 4 "},{"$f":"IFERROR(__xludf.DUMMYFUNCTION(\"\"\"COMPUTED_VALUE\"\"\"),\"Harder Mattis\")","v":"Harder Mattis"},null,{"$f":"IFERROR(__xludf.DUMMYFUNCTION(\"\"\"COMPUTED_VALUE\"\"\"),\"Freiburger Judo-Club\")","v":"Freiburger Judo-Club"},{"$f":"IFERROR(__xludf.DUMMYFUNCTION(\"\"\"COMPUTED_VALUE\"\"\"),\" -\")","v":" -"},{"$f":"IFERROR(__xludf.DUMMYFUNCTION(\"\"\"COMPUTED_VALUE\"\"\"),\"Löffler Kilian\")","v":"Löffler Kilian"},{"$nulls":5},{"$f":"IFERROR(__xludf.DUMMYFUNCTION(\"\"\"COMPUTED_VALUE\"\"\"),\"DJK Ensdorf\")","v":"DJK Ensdorf"},{"$nulls":5},{"$f":"IFERROR(__xludf.DUMMYFUNCTION(\"\"\"COMPUTED_VALUE\"\"\"),0)","v":0},{"$f":"IFERROR(__xludf.DUMMYFUNCTION(\"\"\"COMPUTED_VALUE\"\"\"),1)","v":1},{"$f":"IFERROR(__xludf.DUMMYFUNCTION(\"\"\"COMPUTED_VALUE\"\"\"),0)","v":0},{"$f":"IFERROR(__xludf.DUMMYFUNCTION(\"\"\"COMPUTED_VALUE\"\"\"),10)","v":10}]
[{"$f":"IFERROR(__xludf.DUMMYFUNCTION(\"\"\"COMPUTED_VALUE\"\"\"),\" 1 - 4 \")","v":" 1 - 4 "},{"$f":"IFERROR(__xludf.DUMMYFUNCTION(\"\"\"COMPUTED_VALUE\"\"\"),\"Böhm Arne\")","v":"Böhm Arne"},null,{"$f":"IFERROR(__xludf.DUMMYFUNCTION(\"\"\"COMPUTED_VALUE\"\"\"),\"TSB Ravensburg\")","v":"TSB Ravensburg"},{"$f":"IFERROR(__xludf.DUMMYFUNCTION(\"\"\"COMPUTED_VALUE\"\"\"),\" -\")","v":" -"},{"$f":"IFERROR(__xludf.DUMMYFUNCTION(\"\"\"COMPUTED_VALUE\"\"\"),\"Löffler Kilian\")","v":"Löffler Kilian"},{"$nulls":5},{"$f":"IFERROR(__xludf.DUMMYFUNCTION(\"\"\"COMPUTED_VALUE\"\"\"),\"DJK Ensdorf\")","v":"DJK Ensdorf"},{"$nulls":5},{"$f":"IFERROR(__xludf.DUMMYFUNCTION(\"\"\"COMPUTED_VALUE\"\"\"),0)","v":0},{"$f":"IFERROR(__xludf.DUMMYFUNCTION(\"\"\"COMPUTED_VALUE\"\"\"),1)","v":1},{"$f":"IFERROR(__xludf.DUMMYFUNCTION(\"\"\"COMPUTED_VALUE\"\"\"),0)","v":0},{"$f":"IFERROR(__xludf.DUMMYFUNCTION(\"\"\"COMPUTED_VALUE\"\"\"),10)","v":10}]
[{"$f":"IFERROR(__xludf.DUMMYFUNCTION(\"\"\"COMPUTED_VALUE\"\"\"),\" 2 - 3\")","v":" 2 - 3"},{"$f":"IFERROR(__xludf.DUMMYFUNCTION(\"\"\"COMPUTED_VALUE\"\"\"),\"Haiber Anton\")","v":"Haiber Anton"},null,{"$f":"IFERROR(__xludf.DUMMYFUNCTION(\"\"\"COMPUTED_VALUE\"\"\"),\"TSV Grünwald\")","v":"TSV Grünwald"},{"$f":"IFERROR(__xludf.DUMMYFUNCTION(\"\"\"COMPUTED_VALUE\"\"\"),\" -\")","v":" -"},{"$f":"IFERROR(__xludf.DUMMYFUNCTION(\"\"\"COMPUTED_VALUE\"\"\"),\"Harder Mattis\")","v":"Harder Mattis"},{"$nulls":5},{"$f":"IFERROR(__xludf.DUMMYFUNCTION(\"\"\"COMPUTED_VALUE\"\"\"),\"Freiburger Judo-Club\")","v":"Freiburger Judo-Club"},{"$nulls":5},{"$f":"IFERROR(__xludf.DUMMYFUNCTION(\"\"\"COMPUTED_VALUE\"\"\"),0)","v":0},{"$f":"IFERROR(__xludf.DUMMYFUNCTION(\"\"\"COMPUTED_VALUE\"\"\"),1)","v":1},{"$f":"IFERROR(__xludf.DUMMYFUNCTION(\"\"\"COMPUTED_VALUE\"\"\"),0)","v":0},{"$f":"IFERROR(__xludf.DUMMYFUNCTION(\"\"\"COMPUTED_VALUE\"\"\"),10)","v":10}]
[{"$f":"IFERROR(__xludf.DUMMYFUNCTION(\"\"\"COMPUTED_VALUE\"\"\"),\" 1 - 3\")","v":" 1 - 3"},{"$f":"IFERROR(__xludf.DUMMYFUNCTION(\"\"\"COMPUTED_VALUE\"\"\"),\"Böhm Arne\")","v":"Böhm Arne"},null,{"$f":"IFERROR(__xludf.DUMMYFUNCTION(\"\"\"COMPUTED_VALUE\"\"\"),\"TSB Ravensburg\")","v":"TSB Ravensburg"},{"$f":"IFERROR(__xludf.DUMMYFUNCTION(\"\"\"COMPUTED_VALUE\"\"\"),\" -\")","v":" -"},{"$f":"IFERROR(__xludf.DUMMYFUNCTION(\"\"\"COMPUTED_VALUE\"\"\"),\"Harder Mattis\")","v":"Harder Mattis"},{"$nulls":5},{"$f":"IFERROR(__xludf.DUMMYFUNCTION(\"\"\"COMPUTED_VALUE\"\"\"),\"Freiburger Judo-Club\")","v":"Freiburger Judo-Club"},{"$nulls":5},{"$f":"IFERROR(__xludf.DUMMYFUNCTION(\"\"\"COMPUTED_VALUE\"\"\"),1)","v":1},{"$f":"IFERROR(__xludf.DUMMYFUNCTION(\"\"\"COMPUTED_VALUE\"\"\"),0)","v":0},{"$f":"IFERROR(__xludf.DUMMYFUNCTION(\"\"\"COMPUTED_VALUE\"\"\"),10)","v":10},{"$f":"IFERROR(__xludf.DUMMYFUNCTION(\"\"\"COMPUTED_VALUE\"\"\"),0)","v":0}]
[{"$f":"IFERROR(__xludf.DUMMYFUNCTION(\"\"\"COMPUTED_VALUE\"\"\"),\" 2 - 4\")","v":" 2 - 4"},{"$f":"IFERROR(__xludf.DUMMYFUNCTION(\"\"\"COMPUTED_VALUE\"\"\"),\"Haiber Anton\")","v":"Haiber Anton"},null,{"$f":"IFERROR(__xludf.DUMMYFUNCTION(\"\"\"COMPUTED_VALUE\"\"\"),\"TSV Grünwald\")","v":"TSV Grünwald"},{"$f":"IFERROR(__xludf.DUMMYFUNCTION(\"\"\"COMPUTED_VALUE\"\"\"),\" -\")","v":" -"},{"$f":"IFERROR(__xludf.DUMMYFUNCTION(\"\"\"COMPUTED_VALUE\"\"\"),\"Löffler Kilian\")","v":"Löffler Kilian"},{"$nulls":5},{"$f":"IFERROR(__xludf.DUMMYFUNCTION(\"\"\"COMPUTED_VALUE\"\"\"),\"DJK Ensdorf\")","v":"DJK Ensdorf"},{"$nulls":5},{"$f":"IFERROR(__xludf.DUMMYFUNCTION(\"\"\"COMPUTED_VALUE\"\"\"),0)","v":0},{"$f":"IFERROR(__xludf.DUMMYFUNCTION(\"\"\"COMPUTED_VALUE\"\"\"),1)","v":1},{"$f":"IFERROR(__xludf.DUMMYFUNCTION(\"\"\"COMPUTED_VALUE\"\"\"),0)","v":0},{"$f":"IFERROR(__xludf.DUMMYFUNCTION(\"\"\"COMPUTED_VALUE\"\"\"),10)","v":10}]
[]
[{"$nulls":17},{"$f":"IFERROR(__xludf.DUMMYFUNCTION(\"\"\"COMPUTED_VALUE\"\"\"),\"Gesamtwertung\")","v":"Gesamtwertung"}]
[{"$f":"IFERROR(__xludf.DUMMYFUNCTION(\"\"\"COMPUTED_VALUE\"\"\"),\"B\")","v":"B"},{"$f":"IFERROR(__xludf.DUMMYFUNCTION(\"\"\"COMPUTED_VALUE\"\"\"),\"Name\")","v":"Name"},null,{"$f":"IFERROR(__xludf.DUMMYFUNCTION(\"\"\"COMPUTED_VALUE\"\"\"),\"Verein\")","v":"Verein"},null,{"$f":"IFERROR(__xludf.DUMMYFUNCTION(\"\"\"COMPUTED_VALUE\"\"\"),\"Pkt.\")","v":"Pkt."},{"$f":"IFERROR(__xludf.DUMMYFUNCTION(\"\"\"COMPUTED_VALUE\"\"\"),\"Unterberwert.\")","v":"Unterberwert."},null,{"$f":"IFERROR(__xludf.DUMMYFUNCTION(\"\"\"COMPUTED_VALUE\"\"\"),\"Pkt.\")","v":"Pkt."},{"$f":"IFERROR(__xludf.DUMMYFUNCTION(\"\"\"COMPUTED_VALUE\"\"\"),\"Unterberwert.\")","v":"Unterberwert."},null,{"$f":"IFERROR(__xludf.DUMMYFUNCTION(\"\"\"COMPUTED_VALUE\"\"\"),\"Pkt.\")","v":"Pkt."},{"$f":"IFERROR(__xludf.DUMMYFUNCTION(\"\"\"COMPUTED_VALUE\"\"\"),\"Unterberwert.\")","v":"Unterberwert."},null,{"$f":"IFERROR(__xludf.DUMMYFUNCTION(\"\"\"COMPUTED_VALUE\"\"\"),\"Pkt.\")","v":"Pkt."},{"$f":"IFERROR(__xludf.DUMMYFUNCTION(\"\"\"COMPUTED_VALUE\"\"\"),\"Unterberwert.\")","v":"Unterberwert."},null,{"$f":"IFERROR(__xludf.DUMMYFUNCTION(\"\"\"COMPUTED_VALUE\"\"\"),\"Punkte\")","v":"Punkte"},null,{"$f":"IFERROR(__xludf.DUMMYFUNCTION(\"\"\"COMPUTED_VALUE\"\"\"),\"Unterbew.\")","v":"Unterbew."},null,null,{"$f":"IFERROR(__xludf.DUMMYFUNCTION(\"\"\"COMPUTED_VALUE\"\"\"),\"Ergeb.\")","v":"Ergeb."}]
[{"$f":"IFERROR(__xludf.DUMMYFUNCTION(\"\"\"COMPUTED_VALUE\"\"\"),\"LOS\")","v":"LOS"},{"$nulls":5},{"$f":"IFERROR(__xludf.DUMMYFUNCTION(\"\"\"COMPUTED_VALUE\"\"\"),1)","v":1},null,null,{"$f":"IFERROR(__xludf.DUMMYFUNCTION(\"\"\"COMPUTED_VALUE\"\"\"),2)","v":2},null,null,{"$f":"IFERROR(__xludf.DUMMYFUNCTION(\"\"\"COMPUTED_VALUE\"\"\"),3)","v":3},null,null,{"$f":"IFERROR(__xludf.DUMMYFUNCTION(\"\"\"COMPUTED_VALUE\"\"\"),4)","v":4}]
[{"$f":"IFERROR(__xludf.DUMMYFUNCTION(\"\"\"COMPUTED_VALUE\"\"\"),5)","v":5},{"$f":"IFERROR(__xludf.DUMMYFUNCTION(\"\"\"COMPUTED_VALUE\"\"\"),\"Jaser Semyan\")","v":"Jaser Semyan"},null,{"$f":"IFERROR(__xludf.DUMMYFUNCTION(\"\"\"COMPUTED_VALUE\"\"\"),\"Polizei-SV Königsbrunn\")","v":"Polizei-SV Königsbrunn"},null,{"$f":"IFERROR(__xludf.DUMMYFUNCTION(\"\"\"COMPUTED_VALUE\"\"\"),\"X\")","v":"X"},{"$f":"IFERROR(__xludf.DUMMYFUNCTION(\"\"\"COMPUTED_VALUE\"\"\"),\"X\")","v":"X"},{"$f":"IFERROR(__xludf.DUMMYFUNCTION(\"\"\"COMPUTED_VALUE\"\"\"),\"X\")","v":"X"},{"$f":"IFERROR(__xludf.DUMMYFUNCTION(\"\"\"COMPUTED_VALUE\"\"\"),0)","v":0},{"$f":"IFERROR(__xludf.DUMMYFUNCTION(\"\"\"COMPUTED_VALUE\"\"\"),0)","v":0},{"$f":"IFERROR(__xludf.DUMMYFUNCTION(\"\"\"COMPUTED_VALUE\"\"\"),10)","v":10},{"$f":"IFERROR(__xludf.DUMMYFUNCTION(\"\"\"COMPUTED_VALUE\"\"\"),1)","v":1},{"$f":"IFERROR(__xludf.DUMMYFUNCTION(\"\"\"COMPUTED_VALUE\"\"\"),10)","v":10},{"$f":"IFERROR(__xludf.DUMMYFUNCTION(\"\"\"COMPUTED_VALUE\"\"\"),0)","v":0},{"$f":"IFERROR(__xludf.DUMMYFUNCTION(\"\"\"COMPUTED_VALUE\"\"\"),0)","v":0},{"$f":"IFERROR(__xludf.DUMMYFUNCTION(\"\"\"COMPUTED_VALUE\"\"\"),0)","v":0},{"$f":"IFERROR(__xludf.DUMMYFUNCTION(\"\"\"COMPUTED_VALUE\"\"\"),10)","v":10},{"$f":"IFERROR(__xludf.DUMMYFUNCTION(\"\"\"COMPUTED_VALUE\"\"\"),1)","v":1},null,{"$f":"IFERROR(__xludf.DUMMYFUNCTION(\"\"\"COMPUTED_VALUE\"\"\"),10)","v":10},{"$f":"IFERROR(__xludf.DUMMYFUNCTION(\"\"\"COMPUTED_VALUE\"\"\"),20)","v":20},null,{"$f":"IFERROR(__xludf.DUMMYFUNCTION(\"\"\"COMPUTED_VALUE\"\"\"),3)","v":3},{"$f":"IF(B31=0,\"\",R31*100+(T31-U31))","v":90}]
[{"$f":"IFERROR(__xludf.DUMMYFUNCTION(\"\"\"COMPUTED_VALUE\"\"\"),6)","v":6},{"$f":"IFERROR(__xludf.DUMMYFUNCTION(\"\"\"COMPUTED_VALUE\"\"\"),\"Hofgärtner Valentin\")","v":"Hofgärtner Valentin"},null,{"$f":"IFERROR(__xludf.DUMMYFUNCTION(\"\"\"COMPUTED_VALUE\"\"\"),\"JV Nürtingen\")","v":"JV Nürtingen"},null,{"$f":"IFERROR(__xludf.DUMMYFUNCTION(\"\"\"COMPUTED_VALUE\"\"\"),1)","v":1},{"$f":"IFERROR(__xludf.DUMMYFUNCTION(\"\"\"COMPUTED_VALUE\"\"\"),10)","v":10},{"$f":"IFERROR(__xludf.DUMMYFUNCTION(\"\"\"COMPUTED_VALUE\"\"\"),0)","v":0},{"$f":"IFERROR(__xludf.DUMMYFUNCTION(\"\"\"COMPUTED_VALUE\"\"\"),\"X\")","v":"X"},{"$f":"IFERROR(__xludf.DUMMYFUNCTION(\"\"\"COMPUTED_VALUE\"\"\"),\"X\")","v":"X"},{"$f":"IFERROR(__xludf.DUMMYFUNCTION(\"\"\"COMPUTED_VALUE\"\"\"),\"X\")","v":"X"},{"$f":"IFERROR(__xludf.DUMMYFUNCTION(\"\"\"COMPUTED_VALUE\"\"\"),1)","v":1},{"$f":"IFERROR(__xludf.DUMMYFUNCTION(\"\"\"COMPUTED_VALUE\"\"\"),10)","v":10},{"$f":"IFERROR(__xludf.DUMMYFUNCTION(\"\"\"COMPUTED_VALUE\"\"\"),0)","v":0},{"$f":"IFERROR(__xludf.DUMMYFUNCTION(\"\"\"COMPUTED_VALUE\"\"\"),1)","v":1},{"$f":"IFERROR(__xludf.DUMMYFUNCTION(\"\"\"COMPUTED_VALUE\"\"\"),10)","v":10},{"$f":"IFERROR(__xludf.DUMMYFUNCTION(\"\"\"COMPUTED_VALUE\"\"\"),0)","v":0},{"$f":"IFERROR(__xludf.DUMMYFUNCTION(\"\"\"COMPUTED_VALUE\"\"\"),3)","v":3},null,{"$f":"IFERROR(__xludf.DUMMYFUNCTION(\"\"\"COMPUTED_VALUE\"\"\"),30)","v":30},{"$f":"IFERROR(__xludf.DUMMYFUNCTION(\"\"\"COMPUTED_VALUE\"\"\"),0)","v":0},null,{"$f":"IFERROR(__xludf.DUMMYFUNCTION(\"\"\"COMPUTED_VALUE\"\"\"),1)","v":1},330]
[{"$f":"IFERROR(__xludf.DUMMYFUNCTION(\"\"\"COMPUTED_VALUE\"\"\"),7)","v":7},{"$f":"IFERROR(__xludf.DUMMYFUNCTION(\"\"\"COMPUTED_VALUE\"\"\"),\"Richter Micha\")","v":"Richter Micha"},null,{"$f":"IFERROR(__xludf.DUMMYFUNCTION(\"\"\"COMPUTED_VALUE\"\"\"),\"JV Urbach\")","v":"JV Urbach"},null,{"$f":"IFERROR(__xludf.DUMMYFUNCTION(\"\"\"COMPUTED_VALUE\"\"\"),0)","v":0},{"$f":"IFERROR(__xludf.DUMMYFUNCTION(\"\"\"COMPUTED_VALUE\"\"\"),0)","v":0},{"$f":"IFERROR(__xludf.DUMMYFUNCTION(\"\"\"COMPUTED_VALUE\"\"\"),10)","v":10},{"$f":"IFERROR(__xludf.DUMMYFUNCTION(\"\"\"COMPUTED_VALUE\"\"\"),0)","v":0},{"$f":"IFERROR(__xludf.DUMMYFUNCTION(\"\"\"COMPUTED_VALUE\"\"\"),0)","v":0},{"$f":"IFERROR(__xludf.DUMMYFUNCTION(\"\"\"COMPUTED_VALUE\"\"\"),10)","v":10},{"$f":"IFERROR(__xludf.DUMMYFUNCTION(\"\"\"COMPUTED_VALUE\"\"\"),\"X\")","v":"X"},{"$f":"IFERROR(__xludf.DUMMYFUNCTION(\"\"\"COMPUTED_VALUE\"\"\"),\"X\")","v":"X"},{"$f":"IFERROR(__xludf.DUMMYFUNCTION(\"\"\"COMPUTED_VALUE\"\"\"),\"X\")","v":"X"},{"$f":"IFERROR(__xludf.DUMMYFUNCTION(\"\"\"COMPUTED_VALUE\"\"\"),0)","v":0},{"$f":"IFERROR(__xludf.DUMMYFUNCTION(\"\"\"COMPUTED_VALUE\"\"\"),0)","v":0},{"$f":"IFERROR(__xludf.DUMMYFUNCTION(\"\"\"COMPUTED_VALUE\"\"\"),10)","v":10},{"$f":"IFERROR(__xludf.DUMMYFUNCTION(\"\"\"COMPUTED_VALUE\"\"\"),0)","v":0},null,{"$f":"IFERROR(__xludf.DUMMYFUNCTION(\"\"\"COMPUTED_VALUE\"\"\"),0)","v":0},{"$f":"IFERROR(__xludf.DUMMYFUNCTION(\"\"\"COMPUTED_VALUE\"\"\"),30)","v":30},null,{"$f":"IFERROR(__xludf.DUMMYFUNCTION(\"\"\"COMPUTED_VALUE\"\"\"),4)","v":4},-30]
[{"$f":"IFERROR(__xludf.DUMMYFUNCTION(\"\"\"COMPUTED_VALUE\"\"\"),8)","v":8},{"$f":"IFERROR(__xludf.DUMMYFUNCTION(\"\"\"COMPUTED_VALUE\"\"\"),\"Werner Max\")","v":"Werner Max"},null,{"$f":"IFERROR(__xludf.DUMMYFUNCTION(\"\"\"COMPUTED_VALUE\"\"\"),\"TV 1881 Altdorf e.V.\")","v":"TV 1881 Altdorf e.V."},null,{"$f":"IFERROR(__xludf.DUMMYFUNCTION(\"\"\"COMPUTED_VALUE\"\"\"),1)","v":1},{"$f":"IFERROR(__xludf.DUMMYFUNCTION(\"\"\"COMPUTED_VALUE\"\"\"),10)","v":10},{"$f":"IFERROR(__xludf.DUMMYFUNCTION(\"\"\"COMPUTED_VALUE\"\"\"),0)","v":0},{"$f":"IFERROR(__xludf.DUMMYFUNCTION(\"\"\"COMPUTED_VALUE\"\"\"),0)","v":0},{"$f":"IFERROR(__xludf.DUMMYFUNCTION(\"\"\"COMPUTED_VALUE\"\"\"),0)","v":0},{"$f":"IFERROR(__xludf.DUMMYFUNCTION(\"\"\"COMPUTED_VALUE\"\"\"),10)","v":10},{"$f":"IFERROR(__xludf.DUMMYFUNCTION(\"\"\"COMPUTED_VALUE\"\"\"),1)","v":1},{"$f":"IFERROR(__xludf.DUMMYFUNCTION(\"\"\"COMPUTED_VALUE\"\"\"),10)","v":10},{"$f":"IFERROR(__xludf.DUMMYFUNCTION(\"\"\"COMPUTED_VALUE\"\"\"),0)","v":0},{"$f":"IFERROR(__xludf.DUMMYFUNCTION(\"\"\"COMPUTED_VALUE\"\"\"),\"X\")","v":"X"},{"$f":"IFERROR(__xludf.DUMMYFUNCTION(\"\"\"COMPUTED_VALUE\"\"\"),\"X\")","v":"X"},{"$f":"IFERROR(__xludf.DUMMYFUNCTION(\"\"\"COMPUTED_VALUE\"\"\"),\"X\")","v":"X"},{"$f":"IFERROR(__xludf.DUMMYFUNCTION(\"\"\"COMPUTED_VALUE\"\"\"),2)","v":2},null,{"$f":"IFERROR(__xludf.DUMMYFUNCTION(\"\"\"COMPUTED_VALUE\"\"\"),20)","v":20},{"$f":"IFERROR(__xludf.DUMMYFUNCTION(\"\"\"COMPUTED_VALUE\"\"\"),10)","v":10},null,{"$f":"IFERROR(__xludf.DUMMYFUNCTION(\"\"\"COMPUTED_VALUE\"\"\"),2)","v":2},210]
[]
[{"$f":"IFERROR(__xludf.DUMMYFUNCTION(\"\"\"COMPUTED_VALUE\"\"\"),\"Kampffolgen Pool  B :\")","v":"Kampffolgen Pool  B :"},{"$nulls":16},{"$f":"IFERROR(__xludf.DUMMYFUNCTION(\"\"\"COMPUTED_VALUE\"\"\"),\"  Erg.\")","v":"  Erg."},null,{"$f":"IFERROR(__xludf.DUMMYFUNCTION(\"\"\"COMPUTED_VALUE\"\"\"),\"Unterbew.\")","v":"Unterbew."}]
[{"$f":"IFERROR(__xludf.DUMMYFUNCTION(\"\"\"COMPUTED_VALUE\"\"\"),\" 1 - 2\")","v":" 1 - 2"},{"$f":"IFERROR(__xludf.DUMMYFUNCTION(\"\"\"COMPUTED_VALUE\"\"\"),\"Jaser Semyan\")","v":"Jaser Semyan"},null,{"$f":"IFERROR(__xludf.DUMMYFUNCTION(\"\"\"COMPUTED_VALUE\"\"\"),\"Polizei-SV Königsbrunn\")","v":"Polizei-SV Königsbrunn"},{"$f":"IFERROR(__xludf.DUMMYFUNCTION(\"\"\"COMPUTED_VALUE\"\"\"),\" -\")","v":" -"},{"$f":"IFERROR(__xludf.DUMMYFUNCTION(\"\"\"COMPUTED_VALUE\"\"\"),\"Hofgärtner Valentin\")","v":"Hofgärtner Valentin"},{"$nulls":5},{"$f":"IFERROR(__xludf.DUMMYFUNCTION(\"\"\"COMPUTED_VALUE\"\"\"),\"JV Nürtingen\")","v":"JV Nürtingen"},{"$nulls":5},{"$f":"IFERROR(__xludf.DUMMYFUNCTION(\"\"\"COMPUTED_VALUE\"\"\"),0)","v":0},{"$f":"IFERROR(__xludf.DUMMYFUNCTION(\"\"\"COMPUTED_VALUE\"\"\"),1)","v":1},{"$f":"IFERROR(__xludf.DUMMYFUNCTION(\"\"\"COMPUTED_VALUE\"\"\"),0)","v":0},{"$f":"IFERROR(__xludf.DUMMYFUNCTION(\"\"\"COMPUTED_VALUE\"\"\"),10)","v":10}]
[{"$f":"IFERROR(__xludf.DUMMYFUNCTION(\"\"\"COMPUTED_VALUE\"\"\"),\" 3 - 4 \")","v":" 3 - 4 "},{"$f":"IFERROR(__xludf.DUMMYFUNCTION(\"\"\"COMPUTED_VALUE\"\"\"),\"Richter Micha\")","v":"Richter Micha"},null,{"$f":"IFERROR(__xludf.DUMMYFUNCTION(\"\"\"COMPUTED_VALUE\"\"\"),\"JV Urbach\")","v":"JV Urbach"},{"$f":"IFERROR(__xludf.DUMMYFUNCTION(\"\"\"COMPUTED_VALUE\"\"\"),\" -\")","v":" -"},{"$f":"IFERROR(__xludf.DUMMYFUNCTION(\"\"\"COMPUTED_VALUE\"\"\"),\"Werner Max\")","v":"Werner Max"},{"$nulls":5},{"$f":"IFERROR(__xludf.DUMMYFUNCTION(\"\"\"COMPUTED_VALUE\"\"\"),\"TV 1881 Altdorf e.V.\")","v":"TV 1881 Altdorf e.V."},{"$nulls":5},{"$f":"IFERROR(__xludf.DUMMYFUNCTION(\"\"\"COMPUTED_VALUE\"\"\"),0)","v":0},{"$f":"IFERROR(__xludf.DUMMYFUNCTION(\"\"\"COMPUTED_VALUE\"\"\"),1)","v":1},{"$f":"IFERROR(__xludf.DUMMYFUNCTION(\"\"\"COMPUTED_VALUE\"\"\"),0)","v":0},{"$f":"IFERROR(__xludf.DUMMYFUNCTION(\"\"\"COMPUTED_VALUE\"\"\"),10)","v":10}]
[{"$f":"IFERROR(__xludf.DUMMYFUNCTION(\"\"\"COMPUTED_VALUE\"\"\"),\" 1 - 4 \")","v":" 1 - 4 "},{"$f":"IFERROR(__xludf.DUMMYFUNCTION(\"\"\"COMPUTED_VALUE\"\"\"),\"Jaser Semyan\")","v":"Jaser Semyan"},null,{"$f":"IFERROR(__xludf.DUMMYFUNCTION(\"\"\"COMPUTED_VALUE\"\"\"),\"Polizei-SV Königsbrunn\")","v":"Polizei-SV Königsbrunn"},{"$f":"IFERROR(__xludf.DUMMYFUNCTION(\"\"\"COMPUTED_VALUE\"\"\"),\" -\")","v":" -"},{"$f":"IFERROR(__xludf.DUMMYFUNCTION(\"\"\"COMPUTED_VALUE\"\"\"),\"Werner Max\")","v":"Werner Max"},{"$nulls":5},{"$f":"IFERROR(__xludf.DUMMYFUNCTION(\"\"\"COMPUTED_VALUE\"\"\"),\"TV 1881 Altdorf e.V.\")","v":"TV 1881 Altdorf e.V."},{"$nulls":5},{"$f":"IFERROR(__xludf.DUMMYFUNCTION(\"\"\"COMPUTED_VALUE\"\"\"),0)","v":0},{"$f":"IFERROR(__xludf.DUMMYFUNCTION(\"\"\"COMPUTED_VALUE\"\"\"),1)","v":1},{"$f":"IFERROR(__xludf.DUMMYFUNCTION(\"\"\"COMPUTED_VALUE\"\"\"),0)","v":0},{"$f":"IFERROR(__xludf.DUMMYFUNCTION(\"\"\"COMPUTED_VALUE\"\"\"),10)","v":10}]
[{"$f":"IFERROR(__xludf.DUMMYFUNCTION(\"\"\"COMPUTED_VALUE\"\"\"),\" 2 - 3\")","v":" 2 - 3"},{"$f":"IFERROR(__xludf.DUMMYFUNCTION(\"\"\"COMPUTED_VALUE\"\"\"),\"Hofgärtner Valentin\")","v":"Hofgärtner Valentin"},null,{"$f":"IFERROR(__xludf.DUMMYFUNCTION(\"\"\"COMPUTED_VALUE\"\"\"),\"JV Nürtingen\")","v":"JV Nürtingen"},{"$f":"IFERROR(__xludf.DUMMYFUNCTION(\"\"\"COMPUTED_VALUE\"\"\"),\" -\")","v":" -"},{"$f":"IFERROR(__xludf.DUMMYFUNCTION(\"\"\"COMPUTED_VALUE\"\"\"),\"Richter Micha\")","v":"Richter Micha"},{"$nulls":5},{"$f":"IFERROR(__xludf.DUMMYFUNCTION(\"\"\"COMPUTED_VALUE\"\"\"),\"JV Urbach\")","v":"JV Urbach"},{"$nulls":5},{"$f":"IFERROR(__xludf.DUMMYFUNCTION(\"\"\"COMPUTED_VALUE\"\"\"),1)","v":1},{"$f":"IFERROR(__xludf.DUMMYFUNCTION(\"\"\"COMPUTED_VALUE\"\"\"),0)","v":0},{"$f":"IFERROR(__xludf.DUMMYFUNCTION(\"\"\"COMPUTED_VALUE\"\"\"),10)","v":10},{"$f":"IFERROR(__xludf.DUMMYFUNCTION(\"\"\"COMPUTED_VALUE\"\"\"),0)","v":0}]
[{"$f":"IFERROR(__xludf.DUMMYFUNCTION(\"\"\"COMPUTED_VALUE\"\"\"),\" 1 - 3\")","v":" 1 - 3"},{"$f":"IFERROR(__xludf.DUMMYFUNCTION(\"\"\"COMPUTED_VALUE\"\"\"),\"Jaser Semyan\")","v":"Jaser Semyan"},null,{"$f":"IFERROR(__xludf.DUMMYFUNCTION(\"\"\"COMPUTED_VALUE\"\"\"),\"Polizei-SV Königsbrunn\")","v":"Polizei-SV Königsbrunn"},{"$f":"IFERROR(__xludf.DUMMYFUNCTION(\"\"\"COMPUTED_VALUE\"\"\"),\" -\")","v":" -"},{"$f":"IFERROR(__xludf.DUMMYFUNCTION(\"\"\"COMPUTED_VALUE\"\"\"),\"Richter Micha\")","v":"Richter Micha"},{"$nulls":5},{"$f":"IFERROR(__xludf.DUMMYFUNCTION(\"\"\"COMPUTED_VALUE\"\"\"),\"JV Urbach\")","v":"JV Urbach"},{"$nulls":5},{"$f":"IFERROR(__xludf.DUMMYFUNCTION(\"\"\"COMPUTED_VALUE\"\"\"),1)","v":1},{"$f":"IFERROR(__xludf.DUMMYFUNCTION(\"\"\"COMPUTED_VALUE\"\"\"),0)","v":0},{"$f":"IFERROR(__xludf.DUMMYFUNCTION(\"\"\"COMPUTED_VALUE\"\"\"),10)","v":10},{"$f":"IFERROR(__xludf.DUMMYFUNCTION(\"\"\"COMPUTED_VALUE\"\"\"),0)","v":0}]
[{"$f":"IFERROR(__xludf.DUMMYFUNCTION(\"\"\"COMPUTED_VALUE\"\"\"),\" 2 - 4\")","v":" 2 - 4"},{"$f":"IFERROR(__xludf.DUMMYFUNCTION(\"\"\"COMPUTED_VALUE\"\"\"),\"Hofgärtner Valentin\")","v":"Hofgärtner Valentin"},null,{"$f":"IFERROR(__xludf.DUMMYFUNCTION(\"\"\"COMPUTED_VALUE\"\"\"),\"JV Nürtingen\")","v":"JV Nürtingen"},{"$f":"IFERROR(__xludf.DUMMYFUNCTION(\"\"\"COMPUTED_VALUE\"\"\"),\" -\")","v":" -"},{"$f":"IFERROR(__xludf.DUMMYFUNCTION(\"\"\"COMPUTED_VALUE\"\"\"),\"Werner Max\")","v":"Werner Max"},{"$nulls":5},{"$f":"IFERROR(__xludf.DUMMYFUNCTION(\"\"\"COMPUTED_VALUE\"\"\"),\"TV 1881 Altdorf e.V.\")","v":"TV 1881 Altdorf e.V."},{"$nulls":5},{"$f":"IFERROR(__xludf.DUMMYFUNCTION(\"\"\"COMPUTED_VALUE\"\"\"),1)","v":1},{"$f":"IFERROR(__xludf.DUMMYFUNCTION(\"\"\"COMPUTED_VALUE\"\"\"),0)","v":0},{"$f":"IFERROR(__xludf.DUMMYFUNCTION(\"\"\"COMPUTED_VALUE\"\"\"),10)","v":10},{"$f":"IFERROR(__xludf.DUMMYFUNCTION(\"\"\"COMPUTED_VALUE\"\"\"),0)","v":0}]
[]
[{"$f":"IFERROR(__xludf.DUMMYFUNCTION(\"\"\"COMPUTED_VALUE\"\"\"),\"1.A-P\")","v":"1.A-P"},{"$f":"IFERROR(__xludf.DUMMYFUNCTION(\"\"\"COMPUTED_VALUE\"\"\"),\"Löffler Kilian\")","v":"Löffler Kilian"},null,{"$f":"IFERROR(__xludf.DUMMYFUNCTION(\"\"\"COMPUTED_VALUE\"\"\"),\"DJK Ensdorf\")","v":"DJK Ensdorf"}]
[{"$nulls":5},{"$f":"IFERROR(__xludf.DUMMYFUNCTION(\"\"\"COMPUTED_VALUE\"\"\"),\"Löffler Kilian\")","v":"Löffler Kilian"}]
[{"$f":"IFERROR(__xludf.DUMMYFUNCTION(\"\"\"COMPUTED_VALUE\"\"\"),\"2.B-P\")","v":"2.B-P"},{"$f":"IFERROR(__xludf.DUMMYFUNCTION(\"\"\"COMPUTED_VALUE\"\"\"),\"Werner Max\")","v":"Werner Max"},null,{"$f":"IFERROR(__xludf.DUMMYFUNCTION(\"\"\"COMPUTED_VALUE\"\"\"),\"TV 1881 Altdorf e.V.\")","v":"TV 1881 Altdorf e.V."},{"$f":"IFERROR(__xludf.DUMMYFUNCTION(\"\"\"COMPUTED_VALUE\"\"\"),\"w\")","v":"w"},{"$f":"IFERROR(__xludf.DUMMYFUNCTION(\"\"\"COMPUTED_VALUE\"\"\"),\"DJK Ensdorf\")","v":"DJK Ensdorf"}]
[{"$nulls":15},{"$f":"IFERROR(__xludf.DUMMYFUNCTION(\"\"\"COMPUTED_VALUE\"\"\"),\"Löffler Kilian\")","v":"Löffler Kilian"}]
[{"$f":"IFERROR(__xludf.DUMMYFUNCTION(\"\"\"COMPUTED_VALUE\"\"\"),\"2.A-P\")","v":"2.A-P"},{"$f":"IFERROR(__xludf.DUMMYFUNCTION(\"\"\"COMPUTED_VALUE\"\"\"),\"Böhm Arne\")","v":"Böhm Arne"},null,{"$f":"IFERROR(__xludf.DUMMYFUNCTION(\"\"\"COMPUTED_VALUE\"\"\"),\"TSB Ravensburg\")","v":"TSB Ravensburg"},{"$nulls":11},{"$f":"IFERROR(__xludf.DUMMYFUNCTION(\"\"\"COMPUTED_VALUE\"\"\"),\"DJK Ensdorf\")","v":"DJK Ensdorf"}]
[{"$nulls":5},{"$f":"IFERROR(__xludf.DUMMYFUNCTION(\"\"\"COMPUTED_VALUE\"\"\"),\"Böhm Arne\")","v":"Böhm Arne"},{"$nulls":8},{"$f":"IFERROR(__xludf.DUMMYFUNCTION(\"\"\"COMPUTED_VALUE\"\"\"),\"w\")","v":"w"}]
[{"$f":"IFERROR(__xludf.DUMMYFUNCTION(\"\"\"COMPUTED_VALUE\"\"\"),\"1.B-P\")","v":"1.B-P"},{"$f":"IFERROR(__xludf.DUMMYFUNCTION(\"\"\"COMPUTED_VALUE\"\"\"),\"Hofgärtner Valentin\")","v":"Hofgärtner Valentin"},null,{"$f":"IFERROR(__xludf.DUMMYFUNCTION(\"\"\"COMPUTED_VALUE\"\"\"),\"JV Nürtingen\")","v":"JV Nürtingen"},{"$f":"IFERROR(__xludf.DUMMYFUNCTION(\"\"\"COMPUTED_VALUE\"\"\"),\"w\")","v":"w"},{"$f":"IFERROR(__xludf.DUMMYFUNCTION(\"\"\"COMPUTED_VALUE\"\"\"),\"TSB Ravensburg\")","v":"TSB Ravensburg"}]

{"sheet":"Platz3an","index":1,"n_rows":42,"n_cols":7,"rows_kept":42,"cut":false,"hidden":false,"merged":[]}
["."]
{"$rows_empty":9}
[{"$nulls":4},"#REF!"]
[{"$nulls":4},"#REF!"]
[{"$nulls":4},"#REF!"]
[]
[]
[]
[]
[{"$nulls":4},{"$f":"[2]Ergebnis!C7","v":{"$error":"#REF!"}}]
[]
[]
[]
[{"$nulls":4},{"$f":"[1]Wiegeliste!C5","v":{"$error":"#REF!"}}]
[]
[]
[]
[{"$nulls":4},"3. Platz"]
{"$rows_empty":15}
[null,null,"München,",{"$f":"[1]Wiegeliste!C4","v":{"$error":"#REF!"}},null,null,{"$f":"[1]Wiegeliste!C1","v":{"$error":"#REF!"}}]

{"sheet":"Platz3bn","index":2,"n_rows":42,"n_cols":7,"rows_kept":42,"cut":false,"hidden":false,"merged":[]}
["."]
{"$rows_empty":9}
[{"$nulls":4},"#REF!"]
[{"$nulls":4},"#REF!"]
[{"$nulls":4},"#REF!"]
[]
[]
[]
[]
[{"$nulls":4},{"$f":"[2]Ergebnis!C8","v":{"$error":"#REF!"}}]
[]
[]
[]
[{"$nulls":4},{"$f":"[1]Wiegeliste!C5","v":{"$error":"#REF!"}}]
[]
[]
[]
[{"$nulls":4},"3. Platz"]
{"$rows_empty":15}
[null,null,"München,",{"$f":"[1]Wiegeliste!C4","v":{"$error":"#REF!"}},null,null,{"$f":"[1]Wiegeliste!C1","v":{"$error":"#REF!"}}]

{"sheet":"Platz5an","index":3,"n_rows":42,"n_cols":7,"rows_kept":42,"cut":false,"hidden":false,"merged":[]}
["."]
{"$rows_empty":9}
[{"$nulls":4},"#REF!"]
[{"$nulls":4},"#REF!"]
[{"$nulls":4},"#REF!"]
[]
[]
[]
[]
[{"$nulls":4},{"$f":"[2]Ergebnis!C9","v":{"$error":"#REF!"}}]
[]
[]
[]
[{"$nulls":4},{"$f":"[1]Wiegeliste!C5","v":{"$error":"#REF!"}}]
[]
[]
[]
[{"$nulls":4},"5. Platz"]
{"$rows_empty":15}
[null,null,"München,",{"$f":"[1]Wiegeliste!C4","v":{"$error":"#REF!"}},null,null,{"$f":"[1]Wiegeliste!C1","v":{"$error":"#REF!"}}]

{"sheet":"Platz5bn","index":4,"n_rows":42,"n_cols":7,"rows_kept":42,"cut":false,"hidden":false,"merged":[]}
["."]
{"$rows_empty":9}
[{"$nulls":4},"#REF!"]
[{"$nulls":4},"#REF!"]
[{"$nulls":4},"#REF!"]
[]
[]
[]
[]
[{"$nulls":4},{"$f":"[2]Ergebnis!C10","v":{"$error":"#REF!"}}]
[]
[]
[]
[{"$nulls":4},{"$f":"[1]Wiegeliste!C5","v":{"$error":"#REF!"}}]
[]
[]
[]
[{"$nulls":4},"5. Platz"]
{"$rows_empty":15}
[null,null,"München,",{"$f":"[1]Wiegeliste!C4","v":{"$error":"#REF!"}},null,null,{"$f":"[1]Wiegeliste!C1","v":{"$error":"#REF!"}}]

{"sheet":"Platz7an","index":5,"n_rows":42,"n_cols":7,"rows_kept":42,"cut":false,"hidden":false,"merged":[]}
["."]
{"$rows_empty":9}
[{"$nulls":4},"#REF!"]
[{"$nulls":4},"#REF!"]
[{"$nulls":4},"#REF!"]
[]
[]
[]
[]
[{"$nulls":4},{"$f":"[2]Ergebnis!C11","v":{"$error":"#REF!"}}]
[]
[]
[]
[{"$nulls":4},{"$f":"[1]Wiegeliste!C5","v":{"$error":"#REF!"}}]
[]
[]
[]
[{"$nulls":4},"7. Platz"]
{"$rows_empty":15}
[null,null,"München,",{"$f":"[1]Wiegeliste!C4","v":{"$error":"#REF!"}},null,null,{"$f":"[1]Wiegeliste!C1","v":{"$error":"#REF!"}}]

{"sheet":"Platz7bn","index":6,"n_rows":42,"n_cols":7,"rows_kept":42,"cut":false,"hidden":false,"merged":[]}
["."]
{"$rows_empty":9}
[{"$nulls":4},"#REF!"]
[{"$nulls":4},"#REF!"]
[{"$nulls":4},"#REF!"]
[]
[]
[]
[]
[{"$nulls":4},{"$f":"[2]Ergebnis!C12","v":{"$error":"#REF!"}}]
[]
[]
[]
[{"$nulls":4},{"$f":"[1]Wiegeliste!C5","v":{"$error":"#REF!"}}]
[]
[]
[]
[{"$nulls":4},"7. Platz"]
{"$rows_empty":15}
[null,null,"München,",{"$f":"[1]Wiegeliste!C4","v":{"$error":"#REF!"}},null,null,{"$f":"[1]Wiegeliste!C1","v":{"$error":"#REF!"}}]